bitfinex-derivatives/quotes_ETHF0:USTF0_20251005
["timestamp","ask_amount","ask_price","bid_price","bid_amount"]
[1759631641101,0.6652,4533.5,4533.2,1.13916777]
[1759631641299,3.4761,4533.6,4533.3,0.30994017]
[1759631641603,0.2683,4533.6,4533.5,0.76290882]
[1759631641910,0.2683,4535.2,4534.1,0.39678]
[1759631642105,0.2683,4535.2,4533.5,3.51774017]
[1759631642106,3.4761,4535.2,4535.0,0.76275181]
[1759631642297,3.4761,4535.2,4534.2,3.76874017]
[1759631642298,3.4761,4535.2,4535.1,0.30994017]
[1759631642907,3.72952612,4535.2,4535.1,0.30994017]
[1759631643100,3.72952612,4535.2,4533.9,0.251]
[1759631643101,8.47852612,4535.2,4534.3,0.76275181]
[1759631643304,3.984,4535.0,4534.3,0.7649592]
[1759631643501,0.7762,4535.0,4534.5,0.7649592]
[1759631643700,0.7762,4535.1,4534.5,1.14412771]
[1759631643903,0.7762,4535.1,4534.8,1.14412771]
[1759631644100,0.7762,4535.1,4535.0,1.14412771]
[1759631644609,0.00242612,4535.2,4535.0,6.14412771]
[1759631644801,3.984,4535.8,4535.1,5.0]
[1759631645006,3.984,4535.8,4535.5,1.14841529]
[1759631645007,0.7762,4535.7,4535.5,1.14841529]
[1759631645202,0.7762,4535.7,4535.0,1.56174188]
[1759631645607,0.7762,4535.7,4535.6,1.15050634]
[1759631645910,0.7762,4535.6,4535.1,0.76742793]
[1759631646110,4.2524,4535.2,4534.2,1.56174188]
[1759631646313,3.984,4534.6,4534.2,1.56174188]
[1759631646510,3.2078,4535.1,4533.9,0.9906]
[1759631646812,3.2078,4535.1,4534.1,1.56174188]
[1759631647211,3.2078,4535.1,4534.8,1.56174188]
[1759631647409,3.2078,4535.1,4534.3,1.56174188]
[1759631647714,0.2684,4535.2,4534.2,1.56174188]
[1759631647715,3.2078,4534.5,4534.2,1.56174188]
[1759631647915,3.2078,4534.5,4533.9,1.56174188]
[1759631647916,0.7762,4534.4,4533.9,1.56174188]
[1759631648109,3.2078,4534.5,4533.4,1.81274188]
[1759631648110,3.2078,4534.0,4533.4,1.81274188]
[1759631648416,0.2684,4535.2,4533.4,1.81274188]
[1759631648417,3.2078,4534.6,4533.4,3.2078]
[1759631648716,3.2078,4534.6,4534.0,1.56174188]
[1759631649017,0.7762,4534.0,4533.9,1.56174188]
[1759631649319,0.7762,4533.9,4533.6,1.56174188]
[1759631649513,0.7762,4533.9,4533.2,0.00241122]
[1759631649514,0.7762,4533.9,4533.3,1.56174188]
[1759631650406,3.2078,4533.4,4533.3,1.56174188]
[1759631650613,0.7762,4533.3,4533.2,0.00241122]
[1759631650808,5.7762,4533.3,4532.8,1.56174188]
[1759631651006,1.0446,4532.8,4532.1,1.56174188]
[1759631651209,1.0446,4532.8,4532.0,1.56174188]
[1759631651411,1.0446,4532.8,4532.1,1.56174188]
[1759631651412,0.25,4532.7,4532.1,1.56174188]
[1759631651709,0.25,4532.7,4531.5,1.56174188]
[1759631651710,0.7762,4532.2,4531.5,1.56174188]
[1759631651915,0.25,4532.1,4531.5,0.0024532]
[1759631652107,0.7762,4532.0,4531.6,0.59780155]
[1759631652308,1.0262,4531.9,4531.7,0.59780155]
[1759631652506,34.411,4533.3,4531.5,0.0024532]
[1759631652507,1.94277907,4537.6,4531.8,0.59780155]
[1759631652706,10.31151064,4541.7,4538.5,3.695]
[1759631652914,3.2078,4542.7,4541.6,6.56389157]
[1759631653111,0.2684,4543.0,4542.6,6.56389157]
[1759631653414,0.2684,4545.2,4542.7,0.93704718]
[1759631653713,3.2078,4544.2,4543.9,1.91139083]
[1759631653909,31.48656994,4544.3,4544.0,4.718e-05]
[1759631654115,3.2078,4544.7,4544.1,1.91139083]
[1759631654303,0.2706062,4545.2,4544.5,1.90280806]
[1759631654504,0.2706062,4545.2,4542.8,6.56389157]
[1759631654505,0.2706062,4545.2,4544.6,1.90280806]
[1759631654704,0.25,4545.1,4544.5,3.2078]
[1759631655114,0.2706062,4545.2,4545.0,3.2078]
[1759631655313,0.7762,4545.1,4545.0,3.2078]
[1759631655511,0.2706062,4545.2,4545.0,3.5463651]
[1759631655712,1.0468062,4545.2,4545.1,0.3385651]
[1759631655914,1.2968062,4545.2,4545.1,0.3385651]
[1759631656105,1.0468062,4545.2,4545.1,0.3385651]
[1759631656310,5.37755944,4545.2,4543.8,3.2078]
[1759631656615,5.37755944,4545.2,4543.8,3.13713615]
[1759631656616,3.2078,4544.8,4543.8,3.13713615]
[1759631656916,34.644,4544.7,4543.8,3.13713615]
[1759631657114,34.644,4544.7,4542.7,0.0021866]
[1759631657312,3.2078,4543.5,4542.7,0.0021866]
[1759631657611,37.20916445,4544.7,4542.7,0.0021866]
[1759631657612,3.2078,4543.7,4542.8,3.2078]
[1759631657818,0.25,4543.6,4542.7,0.0021866]
[1759631658011,0.25,4543.5,4542.7,0.0021866]
[1759631658317,3.2078,4544.2,4542.8,0.8104]
[1759631658318,0.25,4543.4,4542.8,0.8104]
[1759631658517,0.25,4543.3,4542.7,0.0021866]
[1759631659113,0.25,4543.2,4542.7,0.0021866]
[1759631659309,3.2078,4543.4,4542.7,0.0021866]
[1759631659615,5.249,4543.3,4542.6,3.2078]
[1759631659816,3.2078,4542.7,4540.8,0.2599]
[1759631660012,3.2078,4540.9,4540.8,0.97031159]
[1759631660207,0.249,4540.9,4540.8,0.97031159]
[1759631660608,0.00191476,4540.9,4540.8,0.97755858]
[1759631661310,3.2078,4542.3,4540.8,0.97755858]
[1759631661311,3.2078,4542.3,4542.0,0.8104]
[1759631661514,3.4598,4543.2,4543.1,0.8104]
[1759631661908,3.2078,4543.2,4543.1,0.8104]
[1759631662116,8.2078,4543.2,4543.0,0.2599]
[1759631662320,5.0,4543.1,4543.0,0.2599]
[1759631662513,5.0,4543.1,4543.0,0.17817819]
[1759631662715,5.253,4543.1,4543.0,0.17817819]
[1759631663017,2.92583254,4543.1,4543.0,0.07890668]
[1759631663212,3.21043017,4543.2,4543.1,0.8104]
[1759631663415,0.00263017,4543.2,4543.1,0.8104]
[1759631664215,3.2078,4544.2,4543.1,5.8104]
[1759631664412,3.2078,4544.2,4543.0,0.07890668]
[1759631664413,3.2078,4544.5,4544.1,0.2599]
[1759631664626,0.255,4544.4,4544.2,0.8104]
[1759631664817,5.0,4544.4,4544.2,0.8104]
[1759631665015,3.2078,4545.1,4544.2,0.8104]
[1759631665224,0.00251442,4545.1,4545.0,1.0703]
[1759631666424,0.25951442,4545.1,4545.0,1.0703]
[1759631667025,0.00251442,4545.1,4545.0,1.0703]
[1759631667220,3.2078,4546.4,4545.0,6.0703]
[1759631667523,3.2078,4546.4,4546.1,0.8104]
[1759631667727,0.258,4546.3,4546.0,0.2599]
[1759631667924,3.2078,4546.4,4546.1,0.8104]
[1759631668326,0.257,4546.3,4546.1,0.8104]
[1759631668630,0.257,4546.3,4546.0,0.2599]
[1759631668631,3.2099744,4546.4,4546.0,0.2599]
[1759631668822,0.0021744,4546.4,4546.1,0.8104]
[1759631669533,0.258,4546.3,4546.1,0.8104]
[1759631669726,0.258,4546.3,4546.0,0.2599]
[1759631670129,5.0,4546.2,4546.1,0.8104]
[1759631670425,5.0,4546.2,4546.0,0.2599]
[1759631670426,3.06309418,4546.2,4546.0,0.2599]
[1759631670622,3.06309418,4546.2,4544.3,3.2078]
[1759631670623,3.06309418,4546.2,4543.7,3.2078]
[1759631670820,3.2078,4545.1,4543.7,3.2078]
[1759631671020,0.0021744,4546.4,4546.0,0.2599]
[1759631671226,3.2078,4546.1,4546.0,0.2599]
[1759631671729,0.258,4546.1,4546.0,0.2599]
[1759631672233,0.001,4546.2,4546.0,0.2599]
[1759631672534,0.259,4546.1,4546.0,0.2599]
[1759631672731,5.259,4546.1,4546.0,0.2599]
[1759631673124,5.259,4546.1,4545.2,0.9844]
[1759631673326,5.259,4546.1,4544.2,0.00214237]
[1759631673327,3.2078,4545.3,4544.2,0.00214237]
[1759631673527,0.258,4545.2,4544.3,0.9844]
[1759631673730,0.258,4545.2,4544.2,0.00214237]
[1759631673731,7.92321769,4545.2,4544.2,0.00214237]
[1759631674037,3.2078,4544.3,4544.2,0.00214237]
[1759631674235,34.346,4544.7,4544.2,0.00214237]
[1759631674427,3.2078,4544.3,4544.2,0.00214237]
[1759631674631,3.2078,4544.3,4544.2,0.98654237]
[1759631674830,3.4668,4544.3,4544.2,0.00214237]
[1759631675036,3.2078,4544.3,4544.2,0.98654237]
[1759631675533,3.2078,4544.5,4544.2,0.00214237]
[1759631675732,34.346,4544.7,4544.3,0.9844]
[1759631675929,0.259,4544.4,4544.3,0.9844]
[1759631676137,3.10182276,4544.4,4542.4,0.75048318]
[1759631676336,3.2078,4542.5,4542.0,1.17578318]
[1759631676527,3.2078,4542.5,4542.2,0.9844]
[1759631676528,37.5528,4542.5,4542.2,0.9844]
[1759631676830,3.2078,4544.2,4544.0,0.4253]
[1759631677032,3.2096382,4544.2,4544.0,0.42766127]
[1759631677232,3.2096382,4544.2,4544.1,0.9844]
[1759631677432,0.26,4545.4,4544.2,0.9844]
[1759631677637,3.2078,4545.0,4544.3,0.65574245]
[1759631677835,3.2078,4545.0,4544.2,0.9844]
[1759631678037,0.26,4544.9,4544.2,4.1922]
[1759631678232,3.2078,4545.0,4544.2,0.9844]
[1759631678429,3.20985838,4545.0,4544.0,0.00236127]
[1759631678634,0.26,4544.9,4544.0,0.00236127]
[1759631678838,1.0188,4544.4,4544.0,0.00236127]
[1759631679140,0.26,4544.3,4544.0,0.00236127]
[1759631679836,0.26,4544.3,4542.3,3.2078]
[1759631679837,1.0188,4544.1,4542.3,3.2078]
[1759631680036,3.2078,4543.2,4542.4,0.65067615]
[1759631680232,3.2078,4543.2,4542.3,3.2078]
[1759631680233,0.26,4543.1,4542.5,0.65233413]
[1759631680541,1.0188,4543.0,4541.9,0.9844]
[1759631680740,3.2078,4542.7,4542.0,0.65244325]
[1759631680931,1.0188,4542.5,4542.1,0.65244325]
[1759631681237,3.2078,4542.7,4542.2,0.65390162]
[1759631681437,1.2778,4542.4,4542.3,0.65390162]
[1759631681738,3.85744158,4542.6,4542.0,0.00265553]
[1759631681944,4.2266,4542.1,4542.0,0.00265553]
[1759631682243,9.4856,4542.1,4542.0,1.4261555]
[1759631682437,4.4856,4542.1,4542.0,0.65949323]
[1759631682637,9.4856,4542.1,4542.0,0.65949323]
[1759631682840,4.4856,4542.1,4542.0,0.65949323]
[1759631683142,38.8326,4542.1,4542.0,0.00265553]
[1759631683336,4.2266,4542.1,4542.0,0.00265553]
[1759631683531,3.2078,4542.1,4542.0,0.00265553]
[1759631683740,3.4678,4542.1,4542.0,0.61993715]
[1759631683936,3.2078,4542.1,4542.0,0.61993715]
[1759631684237,3.4678,4542.1,4542.0,1.60433715]
[1759631684434,3.4678,4542.1,4542.0,0.61993715]
[1759631684636,0.26,4542.1,4542.0,0.61993715]
[1759631684835,3.2078,4542.2,4542.0,0.61993715]
[1759631685036,3.2078,4542.2,4542.1,0.61728162]
[1759631685237,1.57000905,4546.5,4542.1,0.61728162]
[1759631685238,4.2266,4544.9,4542.8,0.99006]
[1759631685431,1.0188,4544.9,4544.4,3.2078]
[1759631685637,0.3613,4546.8,4544.5,0.61728162]
[1759631685638,1.0188,4544.7,4544.5,0.61728162]
[1759631685838,1.0188,4544.7,4544.6,0.61728162]
[1759631686438,1.2788,4544.7,4544.6,0.61728162]
[1759631686835,1.2788,4544.7,4544.6,1.19073739]
[1759631687543,1.0188,4544.7,4544.6,1.19073739]
[1759631687743,1.2788,4544.7,4544.6,1.19073739]
[1759631687943,6.2788,4544.7,4544.6,0.61728162]
[1759631688647,9.4866,4544.7,4544.6,0.61728162]
[1759631688841,9.2266,4544.7,4544.6,0.61728162]
[1759631689045,1.2788,4544.7,4544.6,0.61728162]
[1759631689238,1.0188,4544.7,4544.6,0.61728162]
[1759631689437,1.0188,4544.7,4542.1,0.26]
[1759631689438,1.0188,4544.6,4544.0,0.57345577]
[1759631689640,0.406,4544.1,4544.0,0.57345577]
[1759631689845,1.4248,4544.1,4544.0,0.57345577]
[1759631690149,1.0188,4544.0,4543.7,3.2078]
[1759631690441,1.0188,4544.0,4543.5,0.57345577]
[1759631690646,1.0188,4543.8,4543.4,0.57345577]
[1759631690843,1.0188,4543.5,4543.3,0.57345577]
[1759631691140,1.0188,4543.5,4543.2,3.2078]
[1759631691141,0.259,4543.4,4543.2,3.78125577]
[1759631691338,0.406,4543.2,4543.0,0.57345577]
[1759631691541,1.4248,4543.2,4542.5,0.57345577]
[1759631691741,0.259,4543.1,4542.6,0.57345577]
[1759631692146,1.0188,4542.7,4542.1,3.78125577]
[1759631692341,1.0188,4542.5,4542.4,0.57345577]
[1759631692537,0.259,4542.6,4542.1,3.78125577]
[1759631692743,1.0188,4542.5,4542.1,3.2078]
[1759631692949,1.0188,4542.5,4542.4,0.57345577]
[1759631693150,1.2778,4542.5,4542.4,0.57345577]
[1759631693349,1.0188,4542.2,4542.1,0.57345577]
[1759631693648,1.0188,4542.1,4542.0,0.00265553]
[1759631693844,35.6258,4542.1,4542.0,0.00265553]
[1759631694039,40.6258,4542.1,4542.0,0.00265553]
[1759631694240,40.6258,4542.1,4541.6,3.2078]
[1759631694440,1.0188,4542.0,4541.6,3.2078]
[1759631694755,1.0188,4541.8,4541.6,3.2078]
[1759631694951,0.406,4542.3,4541.6,3.2078]
[1759631695140,1.0188,4541.7,4541.6,3.2078]
[1759631695342,1.27898478,4541.7,4541.6,0.00187655]
[1759631695545,1.27898478,4541.7,4540.8,0.00566]
[1759631695546,1.0188,4541.3,4540.8,0.00566]
[1759631695844,1.0188,4540.9,4539.4,0.57345577]
[1759631696153,1.0188,4540.2,4539.1,3.2078]
[1759631696340,34.609,4540.1,4539.1,3.2078]
[1759631696643,1.0188,4539.2,4538.1,3.2078]
[1759631697036,1.0188,4539.2,4538.7,3.2078]
[1759631697238,0.406,4539.6,4538.7,3.2078]
[1759631697439,3.2078,4540.9,4539.2,3.2078]
[1759631697642,1.0188,4540.3,4539.2,3.20988072]
[1759631697839,1.0188,4540.3,4539.8,3.2078]
[1759631697840,0.258,4540.3,4539.8,3.2078]
[1759631698047,1.4248,4540.5,4539.8,3.2078]
[1759631698245,0.258,4540.4,4539.8,3.2078]
[1759631698441,4.6326,4540.5,4539.8,3.2078]
[1759631698647,0.258,4540.4,4539.8,3.2078]
[1759631698842,1.0188,4540.3,4539.3,3.2078]
[1759631699250,1.0188,4540.1,4539.2,0.00208072]
[1759631699445,1.0188,4539.5,4539.2,0.00208072]
[1759631699749,1.0188,4539.2,4538.2,3.2078]
[1759631700149,3.2078,4539.3,4538.2,3.2078]
[1759631700454,0.258,4539.2,4538.2,3.2078]
[1759631700653,0.258,4539.1,4538.8,3.2078]
[1759631700950,3.2078,4540.6,4539.0,0.39636]
[1759631701248,34.619,4540.4,4539.3,3.2078]
[1759631701443,3.2078,4540.1,4539.3,3.2078]
[1759631701650,0.258,4540.0,4539.3,3.2078]
[1759631701849,4.2266,4540.1,4539.3,3.2078]
[1759631701850,0.258,4539.9,4539.3,3.2078]
[1759631702050,3.2078,4539.4,4538.8,0.00283436]
[1759631702249,0.257,4539.3,4538.8,0.00283436]
[1759631702454,1.0188,4539.2,4538.8,0.00283436]
[1759631702649,4.2266,4538.9,4538.8,0.00283436]
[1759631702846,4.4836,4538.9,4538.8,0.00283436]
[1759631703042,0.4086,4538.7,4537.9,0.02203687]
[1759631703352,4.2507,4538.0,4537.9,0.02203687]
[1759631703548,1.0429,4537.7,4535.9,3.2078]
[1759631703745,1.0429,4536.9,4535.9,3.2078]
[1759631703944,34.623,4536.8,4535.9,3.20978157]
[1759631704141,1.0429,4536.7,4535.9,3.20978157]
[1759631704347,2.88594201,4536.7,4535.9,3.20978157]
[1759631704546,3.2078,4536.5,4535.9,3.20978157]
[1759631704747,0.257,4536.4,4535.9,3.20978157]
[1759631705044,1.4515,4536.0,4535.9,3.20978157]
[1759631705243,1.7085,4536.0,4535.9,3.20978157]
[1759631705445,1.0429,4535.9,4534.6,3.2078]
[1759631705640,4.2507,4535.3,4534.6,3.2078]
[1759631705954,3.30796743,4536.0,4534.6,3.2078]
[1759631705955,0.257,4535.2,4534.6,3.2078]
[1759631706157,0.257,4535.1,4534.6,3.2078]
[1759631706353,0.257,4535.0,4534.6,3.2078]
[1759631706548,0.257,4534.9,4534.1,3.2078]
[1759631706852,0.257,4534.8,4534.1,3.21015283]
[1759631707154,3.2078,4535.3,4534.1,3.21015283]
[1759631707556,0.256,4535.2,4534.6,3.2078]
[1759631707948,0.256,4535.2,4534.2,0.5064]
[1759631708149,3.4638,4535.2,4534.2,0.5064]
[1759631708353,1.4515,4535.1,4534.1,3.21015283]
[1759631708560,1.0429,4535.0,4534.1,3.21015283]
[1759631708757,1.0429,4535.0,4534.1,0.00235283]
[1759631708957,3.2078,4534.6,4534.1,0.00235283]
[1759631709257,1.0429,4534.5,4534.1,0.00235283]
[1759631709457,37.31484552,4535.0,4534.1,3.21015283]
[1759631709649,0.4086,4535.1,4534.1,3.21015283]
[1759631709848,0.256,4535.0,4534.6,0.39674]
[1759631710046,0.256,4535.0,4534.6,3.2078]
[1759631710957,0.256,4535.0,4534.1,0.50875283]
[1759631710958,0.4086,4535.1,4534.1,0.00235283]
[1759631711258,1.2989,4535.0,4534.6,3.2078]
[1759631711461,1.2989,4535.0,4534.1,0.00235283]
[1759631711462,0.256,4535.0,4534.1,3.21015283]
[1759631711754,1.0429,4534.7,4534.1,0.00235283]
[1759631711954,0.256,4534.6,4534.1,0.00235283]
[1759631712158,4.2507,4534.2,4534.1,0.00235283]
[1759631712759,34.648,4534.5,4534.1,8.71655283]
[1759631713055,0.4086,4535.2,4535.0,0.3967]
[1759631713256,0.4086,4535.2,4535.1,3.2078]
[1759631713456,0.4086,4535.2,4535.1,8.2078]
[1759631713660,1.4515,4535.2,4535.1,3.2078]
[1759631714164,1.4515,4535.2,4535.1,8.2078]
[1759631714457,1.4515,4535.2,4535.1,8.6045]
[1759631714648,1.4515,4535.2,4535.1,8.2078]
[1759631714849,1.4515,4535.2,4535.1,3.2078]
[1759631715760,1.4515,4535.2,4535.1,8.2078]
[1759631716156,1.7085,4535.2,4535.1,3.2078]
[1759631716356,1.7085,4535.2,4535.1,3.6045]
[1759631716755,1.4515,4535.2,4535.1,3.6045]
[1759631717154,0.42155603,4535.2,4535.1,8.6045]
[1759631717451,0.4086,4536.0,4535.1,8.2078]
[1759631717657,0.4086,4536.0,4535.9,3.2078]
[1759631717859,0.4086,4537.6,4536.9,0.39654]
[1759631718048,0.4086,4537.6,4536.9,8.2078]
[1759631718252,0.4086,4537.6,4537.5,3.2078]
[1759631718758,0.257,4538.3,4537.9,0.39645]
[1759631719061,0.00267896,4538.3,4538.2,3.60422]
[1759631719259,0.00267896,4538.3,4538.2,8.60422]
[1759631719758,1.04557896,4538.3,4538.2,3.2078]
[1759631719964,1.30157896,4538.3,4538.2,3.2078]
[1759631720460,1.04557896,4538.3,4538.2,3.2078]
[1759631720861,1.30157896,4538.3,4538.2,3.2078]
[1759631721460,1.04557896,4538.3,4538.2,3.2078]
[1759631721653,1.30157896,4538.3,4538.2,3.2078]
[1759631721854,1.04557896,4538.3,4538.2,3.2078]
[1759631722058,1.30157896,4538.3,4538.2,3.2078]
[1759631723362,1.30157896,4538.3,4538.2,3.12454846]
[1759631723656,1.30157896,4538.3,4537.5,0.00155832]
[1759631723657,1.0429,4538.2,4537.6,3.2078]
[1759631724361,1.0429,4538.2,4538.1,3.2078]
[1759631724864,0.25867896,4538.3,4537.6,3.2078]
[1759631725065,1.0429,4538.2,4537.7,0.58686058]
[1759631725259,1.0429,4538.2,4537.6,3.2078]
[1759631725454,1.0429,4538.2,4537.7,0.58741377]
[1759631725659,0.25867896,4538.3,4537.6,3.2078]
[1759631725862,1.0429,4538.2,4537.6,3.2078]
[1759631726167,1.0429,4538.2,4537.7,0.58756115]
[1759631726362,1.0429,4538.0,4537.6,3.2078]
[1759631726756,0.255,4538.1,4537.6,3.2078]
[1759631727461,1.0429,4538.0,4537.6,3.1248253]
[1759631728263,5.0,4537.9,4537.6,3.02822101]
[1759631728468,1.4515,4537.6,4537.5,0.00155832]
[1759631728962,6.4515,4537.6,4537.5,0.00155832]
[1759631729267,8.22041321,4537.6,4537.0,3.2078]
[1759631729464,0.255,4537.5,4537.0,3.2078]
[1759631729663,0.4086,4536.8,4536.5,3.2078]
[1759631729864,1.0429,4536.6,4536.3,3.2078]
[1759631730064,0.254,4536.7,4535.8,3.2078]
[1759631730371,1.4515,4536.0,4535.9,0.5889596]
[1759631730563,1.7055,4536.0,4535.9,0.5889596]
[1759631731469,1.1024,4535.9,4535.8,3.20970105]
[1759631731771,1.1024,4535.9,4535.8,3.79719821]
[1759631731972,36.598,4538.7,4535.8,3.79719821]
[1759631731973,0.022,4552.9,4535.8,8.79719821]
[1759631732175,0.4094,4543.0,4540.9,40.8]
[1759631732466,0.4094,4543.7,4543.3,0.39598]
[1759631732669,11.61876568,4543.6,4543.5,0.39596]
[1759631732869,0.1864,4543.7,4543.5,1.28757815]
[1759631733171,11.74676568,4543.6,4543.5,0.00263393]
[1759631733362,11.61876568,4543.6,4543.5,4.17291426]
[1759631733563,0.18802402,4543.7,4543.6,0.39596]
[1759631733760,0.44202402,4543.7,4543.6,1.35844033]
[1759631733971,0.18802402,4543.7,4543.6,7.9128983]
[1759631734170,0.18802402,4543.7,4543.6,9.05348376]
[1759631734471,1.1287,4544.1,4544.0,3.01977598]
[1759631734666,1.1287,4544.1,4544.0,3.98225631]
[1759631735067,1.3417,4544.1,4544.0,3.98225631]
[1759631735269,1.3417,4544.1,4544.0,4.74088195]
[1759631735574,1.1287,4544.1,4544.0,3.98225631]
[1759631735774,1.13035021,4544.1,4544.0,4.74084859]
[1759631735977,12.96311589,4544.1,4544.0,3.98225631]
[1759631736177,12.96311589,4544.1,4544.0,4.55043098]
[1759631736368,12.96311589,4544.1,4544.0,3.98225631]
[1759631736563,12.96311589,4544.1,4544.0,3.67641534]
[1759631736773,12.96311589,4544.1,4544.0,3.01977598]
[1759631737071,12.96311589,4544.1,4542.1,1.01359228]
[1759631737072,1.1287,4544.0,4543.0,3.2078]
[1759631737275,0.4199,4543.0,4542.6,0.39605]
[1759631737470,0.255,4542.9,4542.8,0.39602]
[1759631737668,0.4199,4543.0,4542.8,0.39602]
[1759631737669,0.4199,4543.0,4542.8,1.04797831]
[1759631737869,0.255,4544.0,4543.3,0.39598]
[1759631738177,1.1287,4543.8,4543.7,3.2078]
[1759631738377,2.26193853,4543.9,4543.3,0.00210424]
[1759631738578,1.1287,4543.8,4543.3,0.00210424]
[1759631738774,1.1287,4543.9,4543.3,0.00210424]
[1759631739478,1.1287,4543.1,4542.5,3.2078]
[1759631739671,1.1287,4542.9,4542.6,0.651287]
[1759631739873,1.1287,4542.9,4542.8,3.2078]
[1759631740183,1.3827,4542.9,4542.8,3.2078]
[1759631740480,1.3827,4542.9,4542.8,3.21001124]
[1759631740679,1.1287,4542.9,4542.8,3.21001124]
[1759631740876,0.6749,4543.2,4542.8,8.21001124]
[1759631741078,1.1287,4543.1,4542.8,3.21001124]
[1759631741579,0.6749,4543.2,4542.8,3.21001124]
[1759631741782,1.1287,4543.1,4543.0,0.39601]
[1759631741977,1.1287,4543.1,4542.8,3.21001124]
[1759631742381,0.6749,4543.2,4542.8,3.21001124]
[1759631742773,0.6749,4543.2,4542.9,0.39602]
[1759631742979,0.4199,4543.2,4542.9,0.39602]
[1759631743180,0.4199,4543.2,4542.8,3.21001124]
[1759631743778,2.26193853,4543.1,4542.8,3.21001124]
[1759631743975,1.1287,4543.1,4542.8,3.12994862]
[1759631744382,0.4199,4543.2,4542.8,3.12994862]
[1759631744583,0.4199,4543.2,4542.8,3.52596862]
[1759631744786,1.1287,4543.0,4542.8,3.12994862]
[1759631745277,1.1287,4542.9,4542.8,3.12994862]
[1759631746985,1.1287,4542.9,4542.8,3.77911646]
[1759631748789,1.1287,4542.9,4542.8,4.17514646]
[1759631749087,1.1287,4542.9,4542.8,3.77911646]
[1759631749676,1.1287,4542.9,4542.3,0.75859228]
[1759631749677,8.2078,4542.9,4542.3,2.16541522]
[1759631749879,0.4199,4542.3,4541.7,3.2078]
[1759631750180,0.253,4542.2,4541.7,3.2078]
[1759631750484,0.253,4542.2,4541.2,3.2078]
[1759631750786,1.1287,4541.5,4541.2,3.21010366]
[1759631750987,1.1287,4541.3,4541.2,3.21010366]
[1759631751487,0.4199,4540.9,4540.7,3.2078]
[1759631751684,1.1287,4540.8,4540.7,3.60401]
[1759631751987,1.1287,4540.8,4540.7,3.2078]
[1759631752485,1.13119098,4540.8,4540.7,3.20963193]
[1759631752684,0.00249098,4540.8,4540.7,8.20963193]
[1759631752987,0.41759634,4540.9,4540.8,0.3962]
[1759631753190,1.54629634,4540.9,4540.8,0.3962]
[1759631753686,0.41759634,4540.9,4540.7,3.20963193]
[1759631753984,1.54892561,4540.9,4540.7,3.20963193]
[1759631754191,1.1287,4540.8,4540.7,3.20963193]
[1759631755299,1.5486,4540.2,4539.3,3.96639228]
[1759631755486,1.1287,4539.4,4539.3,3.60413]
[1759631755688,1.1287,4539.4,4539.3,3.2078]
[1759631755990,1.5486,4538.8,4538.7,3.2078]
[1759631756193,1.8006,4538.8,4538.7,3.21043967]
[1759631756384,1.1287,4539.4,4538.7,3.21043967]
[1759631756583,0.4199,4539.5,4538.7,3.21043967]
[1759631756584,1.1287,4539.2,4538.7,3.21043967]
[1759631756783,1.5486,4538.8,4538.7,3.21043967]
[1759631757193,6.5486,4538.8,4538.7,0.00263967]
[1759631757988,6.5486,4538.8,4538.0,3.2078]
[1759631757989,5.4199,4538.8,4538.0,3.2078]
[1759631758191,1.5486,4538.1,4538.0,3.2078]
[1759631758391,1.8006,4538.1,4538.0,3.2078]
[1759631758591,10.0084,4538.1,4537.9,0.02203687]
[1759631758895,10.0084,4538.1,4536.8,3.96639228]
[1759631758896,5.0,4538.0,4536.8,3.96639228]
[1759631759194,4.3365,4537.3,4536.8,0.00164558]
[1759631759495,1.1287,4537.1,4536.8,0.00164558]
[1759631759693,0.252,4537.0,4536.8,0.00164558]
[1759631759992,1.3797,4536.9,4536.8,0.00164558]
[1759631760185,3.2078,4542.2,4538.9,0.99092]
[1759631760389,1.1287,4542.0,4540.6,3.2078]
[1759631760683,1.1287,4541.5,4540.6,3.2078]
[1759631760888,1.1287,4541.3,4540.6,3.2078]
[1759631761195,1.1287,4541.2,4541.1,3.60397]
[1759631761387,1.3807,4541.2,4540.6,0.00245705]
[1759631761586,4.5885,4541.2,4540.6,0.00245705]
[1759631761796,4.5885,4541.2,4540.7,0.61052796]
[1759631761797,1.1287,4541.0,4540.7,0.61052796]
[1759631762097,1.3807,4540.9,4540.8,0.61052796]
[1759631762292,1.1287,4540.9,4540.8,0.61052796]
[1759631762493,1.3807,4540.9,4540.8,0.61052796]
[1759631762993,6.3807,4540.9,4540.8,0.61052796]
[1759631763390,6.1287,4540.9,4540.8,0.61052796]
[1759631763591,1.1287,4540.9,4540.8,0.61052796]
[1759631763799,1.3807,4540.9,4540.8,0.61052796]
[1759631763991,6.3807,4540.9,4540.8,0.61052796]
[1759631764896,1.3807,4540.9,4540.8,0.61052796]
[1759631766804,0.4432,4540.8,4539.3,3.2078]
[1759631767003,1.3324,4540.1,4539.3,3.2078]
[1759631767202,0.251,4540.0,4539.3,3.2078]
[1759631767503,0.251,4539.9,4539.8,3.2078]
[1759631767699,0.251,4539.9,4539.8,3.2098206]
[1759631768001,1.5834,4539.9,4539.8,3.2098206]
[1759631769104,1.5834,4539.9,4539.8,0.0020206]
[1759631769295,1.5834,4539.9,4538.7,0.75859228]
[1759631769296,6.5834,4539.9,4538.7,0.75859228]
[1759631769597,1.3324,4539.5,4538.3,0.75859228]
[1759631769806,1.3324,4539.0,4538.0,3.2078]
[1759631770007,3.2078,4538.8,4538.0,3.2078]
[1759631770192,0.4432,4539.5,4538.6,3.2078]
[1759631770502,0.251,4539.4,4538.6,3.20942339]
[1759631770691,1.3324,4539.3,4538.6,3.20942339]
[1759631770892,0.16496517,4543.6,4541.9,9.90276]
[1759631771098,3.2078,4545.6,4543.6,0.9899]
[1759631771404,0.029,4546.0,4544.2,1.276]
[1759631771602,3.2078,4545.7,4544.7,3.2078]
[1759631772001,2.79986842,4545.6,4544.8,0.30630797]